bitfinex/quotes_SOLUSD_20240612
["timestamp","ask_amount","ask_price","bid_price","bid_amount"]
[1718181333480,8.31,151.49,151.47,2.4426]
[1718181333777,10.7524,151.49,151.46,2.4428]
[1718181334297,10.7525,151.49,151.46,2.4428]
[1718181336984,8.31,151.49,151.44,8.31]
[1718181337281,8.31,151.49,151.48,2.4425]
[1718181337455,8.31,151.5,151.48,2.4425]
[1718181337878,10.7522,151.5,151.48,2.4425]
[1718181338083,10.7522,151.5,151.47,2.4426]
[1718181343684,8.31,151.5,151.46,7.3284]
[1718181343885,8.31,151.5,151.44,8.31]
[1718181343886,4.8826,151.56,151.5,4.8843]
[1718181344191,4.8826,151.56,151.53,2.4416]
[1718181344192,10.7513,151.56,151.53,2.4416]
[1718181344485,2.4414,151.55,151.52,2.4418]
[1718181344682,2.4416,151.54,151.51,2.442]
[1718181345491,10.7513,151.56,151.52,2.4417]
[1718181346574,14.0008,151.59,151.55,2.4412]
[1718181346881,11.56,151.59,151.58,2.4409]
[1718181349095,11.56,151.59,151.58,10.7509]
[1718181349386,11.56,151.59,151.58,15.6328]
[1718181349763,11.56,151.59,151.58,22.9556]
[1718181349959,2.4398,151.65,151.61,2.4403]
[1718181350376,10.7498,151.65,151.61,2.4403]
[1718181351185,10.7498,151.65,151.59,13.1914]
[1718181351186,2.4397,151.66,151.62,2.4402]
[1718181351508,2.4395,151.67,151.63,2.44]
[1718181351783,10.7495,151.67,151.63,2.44]
[1718181352188,10.7495,151.67,151.64,2.4399]
[1718181352389,10.7495,151.67,151.63,2.44]
[1718181352998,2.4395,151.67,151.63,2.44]
[1718181353173,10.7495,151.67,151.63,2.44]
[1718181353880,2.4395,151.67,151.63,2.44]
[1718181354086,2.4395,151.67,151.64,2.4399]
[1718181354486,10.7494,151.68,151.64,2.4399]
[1718181355272,2.4395,151.67,151.64,2.4399]
[1718181355486,2.4395,151.67,151.63,2.44]
[1718181355881,8.31,151.68,151.63,2.44]
[1718181356083,2.4396,151.67,151.63,2.44]
[1718181356283,10.7496,151.67,151.63,2.44]
[1718181356482,8.31,151.67,151.61,8.31]
[1718181356703,16.1619,151.7,151.63,21.9608]
[1718181356875,10.7492,151.69,151.65,2.4397]
[1718181358508,10.7492,151.69,151.66,2.4396]
[1718181359108,8.31,151.69,151.66,2.4396]
[1718181359278,10.7492,151.69,151.66,2.4396]
[1718181360575,18.601,151.7,151.66,2.4396]
[1718181360777,2.4391,151.7,151.67,2.4394]
[1718181360974,10.7489,151.71,151.67,2.4394]
[1718181361178,16.027,151.73,151.72,2.4387]
[1718181361410,16.027,151.73,151.69,2.4391]
[1718181361703,8.31,151.72,151.7,2.4389]
[1718181361900,16.027,151.73,151.71,2.4388]
[1718181362104,8.31,151.73,151.68,35.6279]
[1718181362398,6.3067,151.75,151.72,2.4386]
[1718181362705,8.31,151.74,151.72,2.4386]
[1718181363283,2.4382,151.76,151.73,2.4385]
[1718181363710,8.31,151.74,151.73,2.4385]
[1718181364010,8.31,151.74,151.7,4.878]
[1718181364782,8.31,151.74,151.72,2.4386]
[1718181364980,2.4382,151.75,151.72,2.4386]
[1718181365387,8.31,151.74,151.72,2.4386]
[1718181366412,10.7479,151.77,151.73,2.4384]
[1718181366710,10.7479,151.77,151.74,2.4383]
[1718181367083,10.7479,151.77,151.73,2.4384]
[1718181367284,2.438,151.76,151.73,2.4384]
[1718181367691,15.8697,151.79,151.75,2.438]
[1718181367891,8.31,151.78,151.75,2.438]
[1718181368086,10.7477,151.78,151.75,2.438]
[1718181368311,8.31,151.78,151.75,2.438]
[1718181368814,10.7477,151.78,151.75,2.438]
[1718181369606,8.31,151.78,151.75,2.438]
[1718181369788,2.4372,151.82,151.73,6.2076]
[1718181369992,10.7471,151.82,151.78,2.4376]
[1718181370192,0.8495483,151.83,151.79,2.4375]
[1718181370193,3.2865483,151.83,151.79,2.4375]
[1718181370493,10.7471,151.82,151.78,2.4376]
[1718181370738,10.7471,151.82,151.79,2.4375]
[1718181371401,2.4371,151.82,151.78,2.4376]
[1718181371601,3.2865483,151.83,151.8,2.4374]
[1718181371918,0.8495483,151.83,151.78,8.31]
[1718181372117,0.8495483,151.83,151.81,2.4371]
[1718181372496,0.8495483,151.83,151.82,7.3111]
[1718181372698,0.8495483,151.83,151.82,2.437]
[1718181373699,0.8495483,151.83,151.82,14.6223]
[1718181373900,0.8495483,151.83,151.82,7.3111]
[1718181374624,0.8495483,151.83,151.82,14.6223]
[1718181374933,0.8495483,151.83,151.82,22.9323]
[1718181375141,0.8495483,151.83,151.82,32.6806]
[1718181375417,0.8495483,151.83,151.82,15.6211]
[1718181375624,0.8495483,151.83,151.81,2.4372]
[1718181375797,9.1595483,151.83,151.8,2.4373]
[1718181376000,11.5965483,151.83,151.79,2.4375]
[1718181376303,11.5965483,151.83,151.77,25.3741]
[1718181376304,8.31,151.82,151.8,2.4372]
[1718181376621,8.31,151.81,151.8,2.4372]
[1718181376820,0.8495483,151.83,151.8,2.4372]
[1718181377133,2.4374,151.8,151.75,17.0673]
[1718181377418,8.31,151.77,151.73,9.754]
[1718181377621,8.31,151.78,151.74,7.315]
[1718181377802,15.8663,151.82,151.74,8.31]
[1718181378003,3.2864483,151.83,151.77,4.8755]
[1718181378307,8.31,151.8,151.79,2.4374]
[1718181378515,8.31,151.8,151.76,2.4379]
[1718181378701,8.31,151.78,151.76,2.4379]
[1718181378898,8.31,151.78,151.74,21.9448]
[1718181379120,8.31,151.78,151.76,2.4379]
[1718181379318,10.7477,151.78,151.75,2.4381]
[1718181379523,8.31,151.77,151.75,2.4381]
[1718181379711,8.31,151.77,151.76,2.438]
[1718181381430,18.0616,151.77,151.68,20.71693017]
[1718181381612,8.31,151.74,151.73,2.4385]
[1718181381820,8.31,151.75,151.74,2.4383]
[1718181382113,8.31,151.75,151.73,2.4384]
[1718181382325,26.6435,151.79,151.73,2.4384]
[1718181382326,8.31,151.74,151.73,2.4384]
[1718181382904,2.438,151.76,151.73,2.4384]
[1718181383109,12.1888,151.78,151.72,2.4386]
[1718181383416,2.4378,151.78,151.75,2.4381]
[1718181384432,24.5459,151.79,151.76,2.438]
[1718181385415,2.4377,151.78,151.75,2.4381]
[1718181386205,17.7857,151.79,151.76,2.4379]
[1718181386426,15.3481,151.79,151.77,2.4378]
[1718181387319,15.3481,151.79,151.78,2.4377]
[1718181387521,2.4374,151.8,151.77,2.4378]
[1718181388211,2.4376,151.79,151.76,2.4379]
[1718181388410,2.4376,151.79,151.75,2.4381]
[1718181388732,2.4375,151.8,151.76,2.438]
[1718181388938,2.4375,151.8,151.77,2.4378]
[1718181389442,2.4373,151.81,151.78,2.4377]
[1718181389637,2.4374,151.8,151.77,2.4378]
[1718181389812,12.1872,151.8,151.72,9.7545]
[1718181390011,2.4378,151.78,151.72,21.9477]
[1718181390217,2.4378,151.78,151.75,2.4382]
[1718181390617,2.4379,151.77,151.72,4.8772]
[1718181390911,2.4379,151.77,151.73,2.4384]
[1718181391235,2.4379,151.77,151.71,2.4387]
[1718181391236,2.4384,151.74,151.71,2.4387]
[1718181391533,21.9426,151.76,151.7,2.4389]
[1718181391717,44.84,151.79,151.71,2.4387]
[1718181391718,2.4383,151.75,151.71,2.4387]
[1718181391918,2.4383,151.75,151.72,2.4386]
[1718181392123,2.4381,151.76,151.72,2.4386]
[1718181393538,2.4381,151.76,151.73,2.4385]
[1718181393832,2.4381,151.76,151.72,2.4386]
[1718181394030,2.4382,151.75,151.72,2.4386]
[1718181394737,2.4381,151.76,151.72,2.4386]
[1718181395432,2.4382,151.75,151.72,2.4386]
[1718181396616,29.9052,151.79,151.71,21.9491]
[1718181396822,2.4379,151.77,151.74,2.4383]
[1718181397019,2.4378,151.78,151.75,2.4381]
[1718181397333,7.3125,151.8,151.75,2.4381]
[1718181397334,2.4376,151.79,151.75,2.4381]
[1718181397531,2.4377,151.78,151.75,2.4381]
[1718181397731,2.4376,151.79,151.76,2.438]
[1718181398233,2.4376,151.79,151.76,2.4379]
[1718181398817,2.4375,151.79,151.76,2.4379]
[1718181399218,4.8748,151.8,151.72,4.8771]
[1718181399420,2.4379,151.77,151.74,2.4382]
[1718181400043,2.438,151.76,151.73,2.4384]
[1718181400218,19.98,151.84,151.71,0.17]
[1718181400537,12.5256,151.82,151.75,4.8763]
[1718181400835,2.4375,151.8,151.75,4.8763]
[1718181401133,2.4375,151.79,151.76,2.4379]
[1718181401541,2.4374,151.8,151.77,2.4378]
[1718181402121,2.4374,151.8,151.76,2.4379]
[1718181402542,2.4375,151.79,151.76,2.4379]
[1718181402814,2.4375,151.79,151.74,12.1916]
[1718181402815,2.4378,151.78,151.74,2.4382]
[1718181403034,2.4379,151.77,151.74,2.4382]
[1718181403420,2.438,151.76,151.73,2.4384]
[1718181403941,2.4379,151.77,151.74,2.4383]
[1718181404823,2.4379,151.77,151.73,2.4384]
[1718181405012,2.4381,151.76,151.73,2.4384]
[1718181405216,2.4381,151.76,151.72,2.4386]
[1718181405740,2.4381,151.76,151.73,2.4385]
[1718181406527,2.4379,151.77,151.74,2.4383]
[1718181406733,2.4378,151.78,151.75,2.4381]
[1718181407231,2.4379,151.77,151.71,21.9489]
[1718181407641,2.4379,151.77,151.72,4.8773]
[1718181407834,2.4379,151.77,151.74,2.4383]
[1718181408943,2.438,151.76,151.73,2.4384]
[1718181409148,2.4388,151.72,151.69,2.439]
[1718181409355,17.0688,151.74,151.67,12.1973]
[1718181409644,2.4387,151.72,151.69,2.4391]
[1718181410369,2.4386,151.73,151.7,2.4389]
[1718181410645,2.4388,151.72,151.68,2.4392]
[1718181410860,21.9443,151.75,151.68,4.8786]
[1718181411019,2.4384,151.74,151.71,2.4388]
[1718181411219,42.6737,151.76,151.73,2.4384]
[1718181411438,17.6437,151.76,151.73,2.4384]
[1718181411842,2.4382,151.75,151.72,2.4386]
[1718181412336,2.4379,151.77,151.74,2.4383]
[1718181413145,2.438,151.76,151.73,2.4384]
[1718181413353,35.0105,151.81,151.74,9.7533]
[1718181413528,2.4376,151.79,151.76,2.438]
[1718181413843,2.4374,151.8,151.76,2.4379]
[1718181414047,2.4375,151.79,151.76,2.4379]
[1718181414270,2.4374,151.8,151.77,2.4378]
[1718181414745,2.4374,151.8,151.76,2.4379]
[1718181415328,2.4374,151.8,151.77,2.4378]
[1718181415745,2.4373,151.81,151.78,2.4377]
[1718181415936,2.4376,151.79,151.76,2.4379]
[1718181416350,2.4376,151.79,151.75,2.4381]
[1718181416543,2.4375,151.8,151.74,7.315]
[1718181416751,2.4375,151.8,151.77,2.4378]
[1718181418036,2.4375,151.79,151.76,2.4379]
[1718181418552,2.4375,151.8,151.76,2.4379]
[1718181418752,2.4375,151.8,151.77,2.4378]
[1718181420440,14.6236,151.81,151.74,12.1917]
[1718181420758,4.8755,151.78,151.71,17.0718]
[1718181420934,2.4381,151.76,151.73,2.4384]
[1718181421450,2.4383,151.75,151.72,2.4386]
[1718181421758,4.8758,151.77,151.71,2.4388]
[1718181421759,2.4384,151.74,151.71,2.4388]
[1718181421977,19.81,151.78,151.68,5.76953438]
[1718181422149,4.8769,151.74,151.69,2.4391]
[1718181422347,2.4387,151.73,151.69,2.4391]
[1718181423064,4.8769,151.74,151.68,2.4393]
[1718181423065,12.1921,151.74,151.68,2.4393]
[1718181423238,2.4388,151.71,151.68,2.4393]
[1718181424058,2.4387,151.72,151.68,2.4393]
[1718181424261,2.4388,151.71,151.68,2.4393]
[1718181424443,2.4388,151.71,151.66,20.9933]
[1718181424636,2.4388,151.71,151.68,2.4393]
[1718181424840,12.1921,151.74,151.66,20.9933]
[1718181424841,2.4386,151.73,151.69,2.4391]
[1718181425048,2.4387,151.72,151.69,2.4391]
[1718181425248,2.4387,151.72,151.68,2.4392]
[1718181425546,2.4388,151.71,151.68,2.4392]
[1718181425744,2.4387,151.72,151.68,2.4392]
[1718181426762,2.4392,151.69,151.66,2.4396]
[1718181426959,2.4392,151.69,151.64,4.8797]
[1718181427172,2.4392,151.69,151.65,2.4397]
[1718181427541,2.4392,151.69,151.66,2.4396]
[1718181428043,2.4391,151.7,151.66,2.4396]
[1718181428347,2.4391,151.7,151.67,2.4395]
[1718181428652,2.4391,151.7,151.64,12.1996]
[1718181428653,2.4391,151.7,151.66,2.4395]
[1718181429464,2.4391,151.69,151.65,2.4397]
[1718181429842,2.439,151.7,151.66,2.4395]
[1718181430055,2.439,151.7,151.64,12.1996]
[1718181430252,2.4392,151.69,151.65,2.4397]
[1718181430654,2.4392,151.69,151.66,2.4396]
[1718181431270,5.2177,151.71,151.65,7.3194]
[1718181431271,2.4389,151.71,151.65,7.3194]
[1718181431482,2.4388,151.71,151.68,2.4392]
[1718181431681,2.4388,151.71,151.66,4.8793]
[1718181431978,12.1936,151.72,151.66,2.4395]
[1718181432145,5.0475,151.72,151.67,2.4394]
[1718181432462,2.4389,151.71,151.67,2.4394]
[1718181433456,2.439,151.7,151.67,2.4394]
[1718181434152,2.4389,151.71,151.67,2.4394]
[1718181434581,2.4389,151.71,151.66,4.8793]
[1718181434956,2.4389,151.71,151.68,2.4393]
[1718181435453,2.439,151.7,151.67,2.4394]
[1718181436169,2.4389,151.71,151.67,2.4394]
[1718181436349,2.439,151.7,151.67,2.4394]
[1718181437373,2.4389,151.71,151.68,2.4393]
[1718181437962,2.439,151.7,151.67,2.4394]
[1718181438163,2.4389,151.71,151.66,4.8792]
[1718181438374,2.4389,151.71,151.68,2.4393]
[1718181439153,2.439,151.7,151.67,2.4394]
[1718181440468,2.4389,151.71,151.68,2.4393]
[1718181440665,29.9408,151.73,151.62,22.4598]
[1718181440666,2.439,151.7,151.67,2.4394]
[1718181441579,0.51,151.69,151.58,16.1781]
[1718181441783,2.4404,151.62,151.58,16.1781]
[1718181441956,4.8801,151.64,151.58,2.4408]
[1718181442160,2.4404,151.62,151.58,2.4408]
[1718181442650,2.4399,151.65,151.58,4.8818]
[1718181442854,2.4399,151.65,151.58,12.2045]
[1718181442855,8.35,151.63,151.58,12.2045]
[1718181443157,8.35,151.63,151.61,2.4404]
[1718181443562,8.35,151.63,151.6,2.4405]
[1718181444163,8.35,151.63,151.57,6.1365]
[1718181444362,10.7905,151.61,151.57,2.441]
[1718181444581,8.35,151.61,151.55,22.9985]
[1718181444887,2.4403,151.62,151.58,2.4408]
[1718181446682,9.7604,151.64,151.54,4.8831]
[1718181446867,4.8807,151.62,151.54,24.8831]
[1718181447181,12.2017,151.62,151.56,2.4411]
[1718181447789,2.4407,151.6,151.56,2.4411]
[1718181448291,2.4407,151.6,151.54,12.2078]
[1718181448491,2.4407,151.6,151.56,2.4411]
[1718181451575,2.4408,151.59,151.56,2.4411]
[1718181451883,2.4407,151.6,151.56,2.4411]
[1718181453070,2.4405,151.61,151.57,2.4411]
[1718181453379,2.4406,151.6,151.57,2.4411]
[1718181453871,2.4408,151.59,151.55,2.4413]
[1718181454187,4.881,151.61,151.53,11.079]
[1718181454188,2.4409,151.58,151.53,11.079]
[1718181454579,2.4408,151.59,151.55,2.4413]
[1718181455288,7.3228,151.58,151.52,15.1218]
[1718181455481,2.4415,151.55,151.52,2.4419]
[1718181455879,2.4415,151.55,151.51,2.4419]
[1718181456074,2.4413,151.56,151.52,2.4418]
[1718181456277,2.4413,151.56,151.53,2.4417]
[1718181456482,2.4413,151.56,151.52,2.4418]
[1718181456694,2.4412,151.56,151.53,2.4416]
[1718181456870,2.4412,151.56,151.51,4.884]
[1718181457196,2.4412,151.57,151.51,4.884]
[1718181457490,2.4412,151.57,151.54,2.4415]
[1718181458582,34.96729531,151.6,151.49,6.2353]
[1718181458889,12.33698916,151.6,151.56,2.4411]
[1718181459091,2.4406,151.6,151.56,2.4411]
[1718181459287,2.4408,151.59,151.56,2.4411]
[1718181460174,2.4407,151.6,151.56,2.4411]
[1718181460491,2.4408,151.59,151.55,2.4413]
[1718181460793,2.4408,151.59,151.56,2.4412]
[1718181460994,2.4407,151.6,151.57,2.4411]
[1718181463068,18.0705,151.61,151.57,2.4411]
[1718181463273,2.4406,151.6,151.57,2.4411]
[1718181464198,18.0705,151.61,151.57,2.4411]
[1718181464400,2.4406,151.6,151.57,2.4411]
[1718181464784,2.4408,151.59,151.56,2.4411]
[1718181465705,2.4407,151.6,151.57,2.4411]
[1718181466298,2.4406,151.6,151.57,2.441]
[1718181466499,2.4408,151.59,151.56,2.4412]
[1718181466703,2.4407,151.6,151.57,2.441]
[1718181468906,8.36,151.58,151.57,2.441]
[1718181469094,8.36,151.58,151.57,2.4411]
[1718181469411,2.4407,151.6,151.57,2.4411]
[1718181469581,8.36,151.58,151.57,2.4411]
[1718181469781,8.36,151.59,151.57,2.4411]
[1718181470584,2.4407,151.6,151.57,2.4411]
[1718181470792,8.36,151.59,151.57,2.4411]
[1718181471608,10.8007,151.59,151.56,2.4411]
[1718181473684,8.36,151.58,151.56,2.4411]
[1718181476207,8.36,151.58,151.57,2.4411]
[1718181477514,8.36,151.58,151.56,2.4411]
[1718181477708,8.36,151.57,151.56,2.4411]
[1718181481302,2.4407,151.59,151.56,2.4411]
[1718181481501,8.36,151.58,151.56,2.4411]
[1718181483211,10.801,151.58,151.55,2.4413]
[1718181483605,10.801,151.58,151.56,2.4412]
[1718181484006,10.801,151.58,151.55,2.4413]
[1718181484217,8.36,151.58,151.56,2.4412]
[1718181484802,10.8009,151.58,151.56,2.4412]
[1718181485130,2.4413,151.56,151.53,2.4416]
[1718181485328,8.36,151.54,151.52,2.4418]
[1718181485542,10.8016,151.54,151.51,2.4419]
[1718181485698,8.36,151.54,151.51,2.4419]
[1718181485903,10.8016,151.54,151.51,2.4419]
[1718181486125,18.24680882,151.54,151.52,2.4418]
[1718181486313,8.36,151.53,151.52,2.4418]
[1718181486625,18.24680882,151.54,151.53,2.4417]
[1718181486816,8.36,151.54,151.53,2.4417]
[1718181487425,2.4409,151.58,151.53,9.7668]
[1718181487632,8.36,151.57,151.55,2.4413]
[1718181488429,10.8011,151.57,151.54,2.4415]
[1718181488817,8.36,151.56,151.54,2.4415]
[1718181490129,8.36,151.56,151.55,2.4414]
[1718181490325,1.545625,169.31,151.55,2.4414]
[1718181490326,2.4405,151.61,151.58,2.4408]
[1718181490546,8.36,151.59,151.55,12.2069]
[1718181490821,8.36,151.57,151.55,2.4413]
[1718181491031,8.36,151.6,151.5,7.3263]
[1718181491210,8.36,151.54,151.48,32.84078904]
[1718181491411,8.36,151.52,151.48,20.62848904]
[1718181491624,8.36,151.52,151.48,17.38158904]
[1718181491927,8.36,151.53,151.51,2.442]
[1718181493928,10.8018,151.53,151.5,2.4421]
[1718181494325,8.36,151.52,151.5,2.4421]
[1718181496331,8.36,151.52,151.48,17.38178904]
[1718181496332,8.36,151.51,151.49,2.4423]
[1718181498836,8.36,151.51,151.45,6.282]
[1718181499035,10.8021,151.51,151.46,12.2141]
[1718181499334,8.36,151.5,151.49,2.4424]
[1718181499739,8.36,151.51,151.49,2.4424]
[1718181500245,8.36,151.5,151.49,2.4424]
[1718181501523,2.4416,151.54,151.51,2.442]
[1718181501843,8.36,151.52,151.5,2.4421]
[1718181502018,8.36,151.51,151.5,2.4421]
[1718181503009,8.36,151.51,151.49,2.4423]
[1718181503237,8.36,151.5,151.48,2.4424]
[1718181503423,8.36,151.49,151.48,2.4425]
[1718181511451,8.36,151.49,151.38,15.194]
[1718181511749,17.5641,151.5,151.45,4.886]
[1718181512041,8.36,151.47,151.46,2.4427]
[1718181513835,8.36,151.47,151.45,2.4429]
[1718181514154,8.36,151.46,151.45,2.4429]
[1718181517755,8.36,151.46,151.44,2.4431]
[1718181517930,8.36,151.45,151.44,2.4431]
[1718181518540,8.36,151.45,151.43,2.4432]
[1718181518731,8.36,151.44,151.42,2.4434]
[1718181518932,8.36,151.43,151.42,2.4434]
[1718181520044,8.36,151.43,151.38,23.554]
[1718181520045,8.36,151.43,151.38,20.0821]
[1718181520243,8.36,151.4,151.39,2.4439]
[1718181521955,2.4433,151.44,151.41,2.4436]
[1718181522125,8.36,151.42,151.4,2.4437]
[1718181522329,8.36,151.41,151.4,2.4437]
[1718181523834,2.4431,151.45,151.4,4.8877]
[1718181524029,8.36,151.42,151.41,2.4436]
[1718181524345,8.36,151.43,151.42,2.4433]
[1718181524747,8.36,151.43,151.42,2.4435]
[1718181525245,8.36,151.43,151.41,2.4435]
[1718181526235,8.36,151.42,151.4,2.4437]
[1718181526545,2.4432,151.44,151.41,2.4436]
[1718181526853,8.36,151.42,151.41,2.4436]
[1718181528151,8.36,151.42,151.4,2.4437]
[1718181528732,8.36,151.41,151.4,2.4437]
[1718181528932,8.36,151.41,151.37,12.2213]
[1718181529330,8.36,151.41,151.39,2.4439]
[1718181529944,2.4434,151.43,151.4,2.4438]
[1718181530142,8.36,151.42,151.4,2.4438]
[1718181532837,8.36,151.41,151.4,2.4438]
[1718181536570,16.2941,151.45,151.43,2.4433]
[1718181536755,16.2941,151.45,151.42,2.4434]
[1718181536957,8.36,151.43,151.42,2.4434]
[1718181537268,8.36,151.44,151.43,2.4433]
[1718181537565,8.36,151.44,151.42,2.4434]
[1718181537739,8.36,151.43,151.42,2.4434]
[1718181539647,8.36,151.43,151.41,2.4436]
[1718181540666,8.36,151.43,151.42,2.4435]
[1718181542144,16.2941,151.45,151.42,2.4435]
[1718181542367,8.36,151.44,151.42,2.4434]
[1718181542667,8.36,151.44,151.43,2.4433]
[1718181542854,10.8029,151.46,151.43,2.4433]
[1718181543048,2.4429,151.46,151.42,4.887]
[1718181543249,10.803,151.45,151.42,2.4434]
[1718181544468,10.8033,151.43,151.38,4.8881]
[1718181544672,8.36,151.43,151.41,2.4436]
[1718181544869,2.4433,151.44,151.41,2.4436]
[1718181545172,2.4431,151.45,151.42,2.4435]
[1718181545365,8.36,151.44,151.42,2.4435]
[1718181545887,2.4429,151.46,151.43,2.4433]
[1718181546173,10.8029,151.46,151.43,2.4433]
[1718181546376,8.36,151.46,151.44,2.4431]
[1718181546562,12.2115,151.5,151.43,4.8866]
[1718181546751,8.36,151.47,151.44,2.4431]
[1718181547050,10.8027,151.47,151.44,2.4431]
[1718181547652,8.36,151.47,151.45,2.4429]
[1718181547957,2.4425,151.49,151.46,2.4428]
[1718181547958,2.4424,151.49,151.46,2.4428]
[1718181548152,10.8024,151.49,151.46,2.4427]
[1718181548681,2.4428,151.46,151.43,2.4433]
[1718181548859,8.36,151.46,151.44,2.4431]
[1718181549064,2.4426,151.48,151.45,2.443]
[1718181549252,8.36,151.47,151.45,2.443]
[1718181549561,70.6902,151.52,151.46,2.4428]
[1718181549758,8.36,151.48,151.45,2.4429]
[1718181550076,10.8025,151.48,151.45,2.4429]
[1718181550577,8.36,151.48,151.46,2.4428]
[1718181551076,2.4423,151.5,151.47,2.4427]
[1718181551271,8.36,151.48,151.47,2.4427]
[1718181551652,8.36,151.48,151.46,2.4427]
[1718181552277,8.36,151.48,151.47,2.4427]
[1718181552572,2.4423,151.5,151.47,2.4426]
[1718181552775,10.8023,151.5,151.47,2.4426]
[1718181553373,2.4421,151.51,151.47,2.4426]
[1718181553573,2.4422,151.5,151.47,2.4426]
[1718181553776,10.8022,151.5,151.47,2.4426]
[1718181554277,2.442,151.51,151.46,4.8856]
[1718181554468,2.4423,151.5,151.47,2.4426]
[1718181554661,10.8023,151.5,151.47,2.4426]
[1718181554862,2.4423,151.5,151.47,2.4426]
[1718181555066,10.8023,151.5,151.47,2.4426]
[1718181555586,2.4423,151.5,151.46,2.4427]
[1718181555765,10.8024,151.49,151.46,2.4427]
[1718181556575,15.2725,151.52,151.45,14.6578]
[1718181556757,2.4421,151.51,151.48,2.4425]
[1718181556960,8.36,151.51,151.49,2.4423]
[1718181557153,8.36,151.51,151.47,4.8854]
[1718181557375,10.8024,151.5,151.46,2.4428]
[1718181557578,2.4424,151.49,151.46,2.4428]
[1718181557887,10.8023,151.5,151.47,2.4427]
[1718181558183,10.8023,151.5,151.46,2.4427]
[1718181558686,10.8023,151.5,151.47,2.4426]
[1718181558983,10.8023,151.5,151.44,16.0292]
[1718181558984,8.36,151.5,151.44,16.0292]
[1718181559159,2.4427,151.48,151.44,0.17]
[1718181559365,2.4426,151.48,151.45,2.4429]
[1718181559590,2.4425,151.48,151.45,2.4429]
[1718181560062,2.4425,151.48,151.43,20.7467]
[1718181560063,10.8025,151.49,151.46,2.4428]
[1718181560265,10.8025,151.49,151.45,2.4429]
[1718181560483,10.8025,151.49,151.46,2.4428]
[1718181560996,2.4425,151.48,151.45,2.4429]
[1718181561169,10.8025,151.49,151.45,2.4429]
[1718181561366,10.8025,151.49,151.46,2.4428]
[1718181562779,8.36,151.48,151.46,2.4428]
[1718181563175,8.36,151.48,151.47,2.4427]
[1718181563767,8.36,151.49,151.47,2.4427]
[1718181564091,8.36,151.49,151.46,2.4427]
[1718181564880,8.36,151.48,151.46,2.4427]
[1718181565277,10.8025,151.48,151.45,2.4429]
[1718181565484,10.8027,151.47,151.44,2.4431]
[1718181565676,8.36,151.47,151.45,2.443]
[1718181565883,8.36,151.48,151.46,2.4428]
[1718181566579,17.0925,151.53,151.47,2.4427]
[1718181566769,8.36,151.49,151.48,2.4425]
[1718181567567,2.4418,151.53,151.5,2.4422]
[1718181567764,8.36,151.52,151.5,2.4422]
[1718181567967,8.36,151.53,151.52,2.4419]
[1718181568167,8.36,151.53,151.47,8.36]
[1718181568375,8.36,151.53,151.51,2.442]
[1718181568965,8.36,151.53,151.5,2.4421]
[1718181569165,2.4417,151.53,151.5,2.4421]
[1718181569366,10.8017,151.53,151.5,2.4421]